[Event "FIDE World Cadets GU12 2022"]
[Site "Batumi"]
[Date "2022.09.23"]
[Round "7.18"]
[White "Enkhuyanga Gantsolmon"]
[Black "Krkyasharyan, Sona"]
[Result "1-0"]
[ECO "D49"]
[WhiteElo "1301"]
[BlackElo "1484"]
[Annotator "NA RC COMBH"]
[PlyCount "49"]
[EventDate "2022.09.16"]
[EventType "swiss"]
[EventCountry "GEO"]
[SourceTitle "playchess.com"]
[Source "ChessBase"]
[SourceQuality "1"]
[TimeControl "5400+30"]

1. d4 {[%emt 0:01:00]} d5 {[%emt 0:01:00]} 2. Nf3 {[%emt 0:00:30]} Nf6 {[%emt 0:00:30]} 3. c4 {[%emt 0:00:30]} c6 {[%emt 0:00:30]} 4. e3 {[%emt 0:00:30]} e6 {[%emt 0:00:00]} 5. Nc3 {[%emt 0:00:30]} Nbd7 {[%emt 0:00:00]} 6. Bd3 {[%emt 0:00:30]} dxc4 {[%emt 0:00:00]} 7. Bxc4 {[%emt 0:00:30]} b5 {[%emt 0:00:00]} 8. Bd3 {[%emt 0:00:30]} a6 {[%emt 0:00:00]} 9. e4 {[%emt 0:00:00]} c5 {[%emt 0:00:00]} 10. e5 {[%emt 0:01:00]} cxd4 {[%emt 0:00:00]} 11. Nxb5 {[%emt 0:02:30]} axb5 {[%emt 0:00:00]} 12. exf6 {[%emt 0:00:30]} gxf6 {[%emt 0:00:00]} 13. Nxd4 {[%emt 0:04:30]} Bc5 {[%emt 0:10:00]} 14. Nxb5 {[%emt 0:06:30]} Bb7 {[%emt 0:02:30]} 15. O-O {[%emt 0:05:30]} Rg8 {[%emt 0:20:30]} 16. g3 {[%emt 0:07:30]} Qb8 {[%emt 0:12:30]} 17. Be3 {[%emt 0:28:30]} Bxe3 {[%emt 0:01:30]} 18. fxe3 {[%emt 0:00:30]} Rxg3+ {[%emt 0:00:00]} 19. Kf2 {[%emt 0:00:30]} Rg2+ {[%emt 0:00:00]} 20. Ke1 {[%emt 0:00:30]} Qxh2 {[%emt 0:06:30]} 21. Be2 {[%emt 0:07:30]} Rd8 {[%emt 0:10:30]} 22. Nd6+ {[%emt 0:02:30]} Kf8 {[%emt 0:00:00]} 23. Nxb7 {[%emt 0:03:30]} Qg3+ {[%emt 0:00:00]} 24. Kd2 {[%emt 0:01:30]} Nc5+ {[%emt 0:00:30]} 25. Nxd8 {[%emt 0:00:30]} 1-0

[Event "FIDE World Cadets GU12 2022"]
[Site "Batumi"]
[Date "2022.09.23"]
[Round "7.19"]
[White "Valiyeva, Asnad"]
[Black "Imomkuzieva, Nilufarkhon"]
[Result "0-1"]
[ECO "A48"]
[WhiteElo "1265"]
[BlackElo "1481"]
[Annotator "NA RC COMBH"]
[PlyCount "79"]
[EventDate "2022.09.16"]
[EventType "swiss"]
[EventCountry "GEO"]
[SourceTitle "playchess.com"]
[Source "ChessBase"]
[SourceQuality "1"]
[TimeControl "5400+30"]

1. d4 {[%emt 0:01:00]} Nf6 {[%emt 0:01:00]} 2. Bf4 {[%emt 0:00:30]} c5 {[%emt 0:00:30]} 3. e3 {[%emt 0:00:30]} g6 {[%emt 0:01:30]} 4. c3 {[%emt 0:01:30]} cxd4 {[%emt 0:00:30]} 5. exd4 {[%emt 0:00:30]} Bg7 {[%emt 0:00:00]} 6. Be2 {[%emt 0:01:30]} d6 {[%emt 0:00:00]} 7. h3 {[%emt 0:00:30]} O-O {[%emt 0:01:30]} 8. Nf3 {[%emt 0:00:30]} Nc6 {[%emt 0:00:00]} 9. O-O {[%emt 0:00:30]} Qb6 {[%emt 0:02:00]} 10. Qb3 {[%emt 0:06:30]} Qc7 {[%emt 0:08:30]} 11. Nbd2 {[%emt 0:04:30]} e5 {[%emt 0:03:30]} 12. dxe5 {[%emt 0:13:30]} dxe5 {[%emt 0:00:30]} 13. Be3 {[%emt 0:00:00]} Be6 {[%emt 0:00:00]} 14. Qa3 {[%emt 0:15:00]} b6 {[%emt 0:08:00]} 15. Bc4 {[%emt 0:09:30]} Bxc4 {[%emt 0:30:30]} 16. Nxc4 {[%emt 0:02:30]} Nd5 {[%emt 0:00:30]} 17. Qd6 {[%emt 0:06:30]} Qxd6 {[%emt 0:02:30]} 18. Nxd6 {[%emt 0:00:30]} Rad8 {[%emt 0:01:30]} 19. Nc4 {[%emt 0:01:30]} Nxe3 {[%emt 0:04:30]} 20. Nxe3 {[%emt 0:00:30]} e4 {[%emt 0:00:30]} 21. Nh2 {[%emt 0:02:30]} f5 {[%emt 0:00:30]} 22. Rfd1 {[%emt 0:02:30]} Ne5 {[%emt 0:04:30]} 23. Rab1 {[%emt 0:07:30]} Nd3 {[%emt 0:00:30]} 24. Nhf1 {[%emt 0:00:30]} Rd7 {[%emt 0:05:30]} 25. Nc2 {[%emt 0:01:30]} Rfd8 {[%emt 0:02:30]} 26. Ne1 {[%emt 0:01:30]} Nc5 {[%emt 0:04:13]} 27. Rxd7 {[%emt 0:00:30]} Rxd7 {[%emt 0:00:04]} 28. Ne3 {[%emt 0:07:58]} Na4 {[%emt 0:01:14]} 29. N1c2 {[%emt 0:02:56]} Rd2 {[%emt 0:00:36]} 30. Rd1 {[%emt 0:00:35]} Rd3 {[%emt 0:03:43]} 31. Rb1 {[%emt 0:02:00]} b5 {[%emt 0:03:54]} 32. g3 {[%emt 0:01:12]} Bh6 {[%emt 0:01:32]} 33. Kf1 {[%emt 0:00:49]} Rd2 {[%emt 0:00:46]} 34. Nd4 {[%emt 0:01:36]} Bxe3 {[%emt 0:00:30]} 35. fxe3 {[%emt 0:00:00]} a6 {[%emt 0:00:25]} 36. b3 {[%emt 0:03:15]} Nxc3 {[%emt 0:01:00]} 37. Rc1 {[%emt 0:00:03]} Nd5 {[%emt 0:02:54]} 38. Rc8+ {[%emt 0:01:07]} Kf7 {[%emt 0:00:30]} 39. Nc2 {[%emt 0:00:30]} Rxc2 {[%emt 0:00:30]} 40. Ke1 {[%emt 0:00:00]} 0-1

[Event "FIDE World Cadets GU12 2022"]
[Site "Batumi"]
[Date "2022.09.23"]
[Round "7.20"]
[White "Kush, Agniya"]
[Black "Vlasova, Mariya N"]
[Result "0-1"]
[ECO "E97"]
[WhiteElo "1131"]
[BlackElo "1456"]
[Annotator "NA RC COMBH"]
[PlyCount "114"]
[EventDate "2022.09.16"]
[EventType "swiss"]
[EventCountry "GEO"]
[SourceTitle "playchess.com"]
[Source "ChessBase"]
[SourceQuality "1"]
[TimeControl "5400+30"]

1. d4 {[%emt 0:01:00]} Nf6 {[%emt 0:01:00]} 2. c4 {[%emt 0:00:30]} g6 {[%emt 0:00:30]} 3. Nc3 {[%emt 0:00:30]} Bg7 {[%emt 0:00:30]} 4. e4 {[%emt 0:00:30]} d6 {[%emt 0:00:30]} 5. Nf3 {[%emt 0:00:30]} O-O {[%emt 0:00:30]} 6. Be2 {[%emt 0:00:30]} Nc6 {[%emt 0:00:30]} 7. O-O {[%emt 0:00:30]} e5 {[%emt 0:00:30]} 8. d5 {[%emt 0:00:30]} Ne7 {[%emt 0:00:30]} 9. h3 {[%emt 0:00:30]} Nd7 {[%emt 0:00:30]} 10. Be3 {[%emt 0:00:30]} f5 {[%emt 0:00:00]} 11. Ng5 {[%emt 0:01:30]} Nf6 {[%emt 0:00:00]} 12. b4 {[%emt 0:12:30]} f4 {[%emt 0:00:30]} 13. Bd2 {[%emt 0:00:30]} h6 {[%emt 0:00:30]} 14. Nf3 {[%emt 0:00:30]} g5 {[%emt 0:00:30]} 15. c5 {[%emt 0:00:30]} Bd7 {[%emt 0:02:30]} 16. Qc2 {[%emt 0:02:30]} Qc8 {[%emt 0:00:30]} 17. h4 {[%emt 0:06:30]} g4 {[%emt 0:00:30]} 18. Nh2 {[%emt 0:00:30]} Ng6 {[%emt 0:02:30]} 19. g3 {[%emt 0:01:30]} Nh5 {[%emt 0:00:30]} 20. Qd3 {[%emt 0:01:30]} f3 {[%emt 0:01:30]} 21. Bd1 {[%emt 0:00:30]} Qd8 {[%emt 0:00:30]} 22. cxd6 {[%emt 0:02:30]} cxd6 {[%emt 0:00:30]} 23. Nb5 {[%emt 0:00:30]} Nxg3 {[%emt 0:01:30]} 24. fxg3 {[%emt 0:02:30]} Qb6+ {[%emt 0:00:00]} 25. Be3 {[%emt 0:03:30]} Bxb5 {[%emt 0:00:00]} 26. Qd2 {[%emt 0:00:30]} Qd8 {[%emt 0:02:30]} 27. Rf2 {[%emt 0:00:00]} Nf4 {[%emt 0:01:30]} 28. Nxg4 {[%emt 0:17:00]} Nh3+ {[%emt 0:00:30]} 29. Kh2 {[%emt 0:00:00]} Nxf2 {[%emt 0:00:30]} 30. Qxf2 {[%emt 0:00:00]} Kh7 {[%emt 0:00:30]} 31. Bxf3 {[%emt 0:02:30]} h5 {[%emt 0:01:30]} 32. Bg5 {[%emt 0:02:30]} Rxf3 {[%emt 0:01:30]} 33. Qxf3 {[%emt 0:00:30]} Qf8 {[%emt 0:02:30]} 34. Nf6+ {[%emt 0:00:30]} Bxf6 {[%emt 0:00:30]} 35. Bxf6 {[%emt 0:00:30]} Qf7 {[%emt 0:05:30]} 36. Qf5+ {[%emt 0:01:30]} Qg6 {[%emt 0:00:30]} 37. Qe6 {[%emt 0:04:30]} Rf8 {[%emt 0:00:30]} 38. Bg5 {[%emt 0:01:30]} Rf2+ {[%emt 0:01:30]} 39. Kg1 {[%emt 0:00:30]} Qxe6 {[%emt 0:01:30]} 40. dxe6 {[%emt 0:00:30]} Re2 {[%emt 0:00:30]} 41. Rc1 {[%emt 0:00:30]} Rxe4 {[%emt 0:00:30]} 42. Rc7+ {[%emt 0:00:30]} Kg6 {[%emt 0:00:30]} 43. Rxb7 {[%emt 0:00:30]} a6 {[%emt 0:00:30]} 44. Rb6 {[%emt 0:01:30]} d5 {[%emt 0:02:30]} 45. a4 {[%emt 0:01:30]} Bxa4 {[%emt 0:00:30]} 46. Rxa6 {[%emt 0:00:00]} Be8 {[%emt 0:02:30]} 47. Rb6 {[%emt 0:02:00]} d4 {[%emt 0:00:30]} 48. Kf2 {[%emt 0:00:30]} d3 {[%emt 0:00:30]} 49. Kf3 {[%emt 0:06:30]} Re2 {[%emt 0:00:30]} 50. e7+ {[%emt 0:02:30]} Kf7 {[%emt 0:00:30]} 51. Rf6+ {[%emt 0:03:30]} Kxe7 {[%emt 0:00:00]} 52. Rc6+ {[%emt 0:06:14]} Kd7 {[%emt 0:00:00]} 53. Rc1 {[%emt 0:01:18]} e4+ {[%emt 0:00:30]} 54. Kf4 {[%emt 0:00:45]} d2 {[%emt 0:00:00]} 55. Rd1 {[%emt 0:00:42]} e3 {[%emt 0:00:00]} 56. Ra1 {[%emt 0:00:14]} Re1 {[%emt 0:00:00]} 57. Ra7+ {[%emt 0:00:30]} Kc6 {[%emt 0:00:00]} 0-1